fUST/lending_fUST_20260118
["ID","MTS","AMOUNT","RATE_DAILY","PERIOD"]
[402510189,1768690278493,-500.0,0.00017808,3]
[402510191,1768690278502,-1195.56,0.00017808,3]
[402510193,1768690278511,-1026.17,0.00017808,3]
[402510195,1768690278522,-500.0,0.00017808,3]
[402510197,1768690278532,-717.34,0.00017808,3]
[402510199,1768690278541,-500.0,0.00017808,3]
[402510201,1768690278551,-500.0,0.00017808,3]
[402510203,1768690278562,-500.0,0.00017808,3]
[402510205,1768690278572,-500.0,0.00017808,3]
[402510207,1768690278581,-811.2,0.00017808,3]
[402510209,1768690278591,-81.62533212,0.00017808,3]
[402510246,1768690278951,-140.70711457,0.00017808,3]
[402510248,1768690278962,-201.93131543,0.00017808,3]
[402510250,1768690278974,-330.65868457,0.00017808,3]
[402510251,1768690278984,-500.0,0.00017808,3]
[402510253,1768690278993,-591.59,0.00017808,3]
[402510255,1768690279003,-500.0,0.00017808,3]
[402510257,1768690279014,-210.16436014,0.00017808,3]
[402510260,1768690279025,-289.83563986,0.00017808,3]
[402510262,1768690279034,-413.01365591,0.00017808,3]
[402510264,1768690279046,-305.07634409,0.00017808,3]
[402510266,1768690279056,-371.13463766,0.00017808,3]
[402510268,1768690279069,-841.71536234,0.00017808,3]
[402510270,1768690279078,-651.61,0.00017808,3]
[402510272,1768690279087,-500.0,0.00017808,3]
[402510274,1768690279097,-1907.03,0.00017808,3]
[402510276,1768690279107,-559.60105405,0.00017808,3]
[402510279,1768690279127,-151.0,0.00016712,2]
[402510281,1768690279137,-157.53894595,0.00017808,3]
[402510283,1768690279146,-517.83,0.00017808,3]
[402510285,1768690279156,-673.69,0.00017808,3]
[402510287,1768690279166,-209.67222929,0.00017808,3]
[402510324,1768690279546,-319.9872185,0.00016066,2]
[402510326,1768690279557,-1680.0127815,0.00016066,2]
[402510328,1768690279567,-2000.0,0.00016066,2]
[402510330,1768690279577,-500.0,0.00016712,3]
[402510332,1768690279588,-225.1304,0.00016986,2]
[402510334,1768690279597,-500.0,0.00016986,3]
[402510336,1768690279607,-290.32777071,0.00017808,3]
[402510338,1768690279617,-653.71,0.00017808,3]
[402510340,1768690279627,-86.93381569,0.00017808,3]
[402510342,1768690279638,-415.56618431,0.00017808,3]
[402510344,1768690279647,-692.54,0.00017808,3]
[402510346,1768690279658,-500.0,0.00017808,3]
[402510348,1768690279667,-1247.67,0.00017808,3]
[402510350,1768690279677,-500.0,0.00017808,3]
[402510352,1768690279686,-1000.0,0.00017808,2]
[402510354,1768690279695,-500.0,0.00017808,3]
[402510356,1768690279705,-500.0,0.00017808,3]
[402510358,1768690279714,-500.0,0.00017808,3]
[402510359,1768690279723,-1000.01,0.00017808,3]
[402510360,1768690279733,-500.0,0.00017808,3]
[402510361,1768690279742,-500.0,0.00017808,3]
[402510362,1768690279751,-708.28,0.00017808,3]
[402510363,1768690279761,-500.0,0.00017808,3]
[402510364,1768690279770,-1023.02,0.00017808,3]
[402510365,1768690279784,-500.0,0.00017808,3]
[402510366,1768690279793,-729.88,0.00017808,3]
[402510367,1768690279803,-529.68,0.00017808,3]
[402510368,1768690279812,-500.0,0.00017808,3]
[402510369,1768690279821,-500.0,0.00017808,3]
[402510370,1768690279830,-500.0,0.00017808,3]
[402510371,1768690279839,-1414.94697539,0.00017808,3]
[402510372,1768690279851,-9.88302461,0.00017808,3]
[402510373,1768690279860,-417.990597,0.00017808,3]
[402510374,1768690279871,-461.54637839,0.00017808,3]
[402510375,1768690280120,-1186.52362161,0.00017808,3]
[402510376,1768690280130,-500.0,0.00017808,3]
[402510377,1768690280140,-926.45,0.00017808,3]
[402510378,1768690280149,-500.0,0.00017808,3]
[402510379,1768690280159,-500.0,0.00017808,3]
[402510380,1768690280168,-1031.93,0.00017808,3]
[402510381,1768690280177,-500.0,0.00017808,3]
[402510382,1768690280187,-500.0,0.00017808,3]
[402510384,1768690280196,-500.0,0.00017808,3]
[402510386,1768690280205,-500.0,0.00017808,3]
[402510388,1768690280214,-956.48,0.00017808,3]
[402510390,1768690280224,-1278.05,0.00017808,3]
[402510392,1768690280233,-1083.73,0.00017808,3]
[402510394,1768690280243,-500.0,0.00017808,3]
[402510396,1768690280254,-996.38,0.00017808,3]
[402510398,1768690280265,-500.0,0.00017808,3]
[402510399,1768690280275,-500.0,0.00017808,3]
[402510401,1768690280287,-512.1,0.00017808,3]
[402510404,1768690280299,-534.44,0.00017808,3]
[402510405,1768690280309,-1142.0,0.00017808,3]
[402510407,1768690280323,-500.0,0.00017808,3]
[402510409,1768690280332,-500.0,0.00017808,3]
[402510411,1768690280342,-264.38150167,0.00017808,3]
[402510414,1768690280354,-1301.50849833,0.00017808,3]
[402510416,1768690280364,-902.19,0.00017808,3]
[402510418,1768690280373,-1625.11,0.00017808,3]
[402510420,1768690280383,-822.5,0.00017808,3]
[402510422,1768690280394,-500.0,0.00017808,3]
[402510424,1768690280403,-509.14,0.00017808,3]
[402510426,1768690280414,-500.0,0.00017808,3]
[402510428,1768690280423,-500.0,0.00017808,3]
[402510430,1768690280433,-507.95,0.00017808,3]
[402510432,1768690280444,-631.39,0.00017808,3]
[402510434,1768690280454,-500.0,0.00017808,3]
[402510435,1768690280463,-500.0,0.00017808,3]
[402510436,1768690280473,-1958.41,0.00017808,3]
[402510437,1768690280484,-500.0,0.00017808,3]
[402510438,1768690280494,-800.37602653,0.00017808,3]
[402510439,1768690280506,-428.00397347,0.00017808,3]
[402510440,1768690280516,-618.12,0.00017808,3]
[402510441,1768690280526,-500.0,0.00017808,3]
[402510442,1768690280535,-151.0,0.00017808,2]
[402510443,1768690280544,-500.0,0.00017808,3]
[402510444,1768690280554,-500.0,0.00017808,3]
[402510445,1768690280564,-500.0,0.00017808,3]
[402510446,1768690280574,-500.0,0.00017808,3]
[402510447,1768690280584,-500.0,0.00017808,3]
[402510448,1768690280594,-532.04,0.00017808,3]
[402510449,1768690280603,-376.11224653,0.00017808,3]
[402510450,1768690280963,-660.45,0.00017808,3]
[402510451,1768690280973,-500.0,0.00017808,3]
[402510452,1768690280983,-500.0,0.00017808,3]
[402510453,1768690280993,-500.0,0.00017808,3]
[402510454,1768690281003,-588.04,0.00017808,3]
[402510455,1768690281012,-473.23403329,0.00017808,3]
[402510829,1768690285845,1011.24839514,0.00012761,2]
[402511121,1768690330185,896.06951367,0.00012329,2]
[402511122,1768690330209,643.52048633,0.00012329,2]
[402511123,1768690340858,1282.99,0.00012329,2]
[402511124,1768690343007,427.48287846,0.00012472,2]
[402511125,1768690351315,1069.16,0.00012329,2]
[402511126,1768690361581,890.97,0.00012329,2]
[402511127,1768690371919,742.47,0.00012329,2]
[402511128,1768690380139,10000.01,0.00012761,2]
[402511129,1768690380169,10000.01,0.00012761,2]
[402511130,1768690380205,10000.01,0.00012761,2]
[402511131,1768690380236,10000.01,0.00012761,2]
[402511132,1768690380267,10000.01,0.00012761,2]
[402511133,1768690380294,10000.01,0.00012761,2]
[402511134,1768690380325,10000.01,0.00012761,2]
[402511135,1768690380357,10000.01,0.00012761,2]
[402511136,1768690380391,10000.01,0.00012761,2]
[402511137,1768690380422,10000.01,0.00012761,2]
[402511138,1768690382669,-618.73,0.00012329,2]
[402511139,1768690383295,-3478.34663521,0.00012761,2]
[402511140,1768690383449,-10000.01,0.00012761,2]
[402511141,1768690387490,-10000.01,0.00012761,2]
[402511142,1768690387618,-10000.01,0.00012761,2]
[402511143,1768690387778,-10000.01,0.00012761,2]
[402511144,1768690387937,-10000.01,0.00012761,2]
[402511145,1768690388055,-10000.01,0.00012761,2]
[402511146,1768690388172,-10000.01,0.00012761,2]
[402511147,1768690388302,-10000.01,0.00012761,2]
[402511148,1768690388431,-10000.01,0.00012761,2]
[402511149,1768690388691,-10000.01,0.00012761,2]
[402511150,1768690388816,-10000.01,0.00012761,2]
[402511151,1768690389013,-10000.01,0.00012761,2]
[402511152,1768690389129,-10000.01,0.00012761,2]
[402511153,1768690389288,-10000.01,0.00012761,2]
[402511154,1768690389534,-10000.01,0.00012761,2]
[402511155,1768690389564,-10000.01,0.00012761,2]
[402511156,1768690390623,-10000.01,0.00012761,2]
[402511157,1768690390767,-10000.01,0.00012761,2]
[402511158,1768690390911,-10000.01,0.00012761,2]
[402511159,1768690391019,-10000.01,0.00012761,2]
[402511160,1768690391165,-10000.01,0.00012761,2]
[402511161,1768690391317,-10000.01,0.00012761,2]
[402511162,1768690391433,-10000.01,0.00012761,2]
[402511163,1768690391559,-10000.01,0.00012761,2]
[402511164,1768690391709,-10000.01,0.00012761,2]
[402511165,1768690391844,-10000.01,0.00012761,2]
[402511166,1768690392366,-10000.01,0.00012761,2]
[402511167,1768690392391,-10000.01,0.00012761,2]
[402511168,1768690392405,-10000.01,0.00012761,2]
[402511169,1768690392424,-10000.01,0.00012761,2]
[402511170,1768690392464,-10000.01,0.00012761,2]
[402511171,1768690411784,576.0,0.00027397,120]
[402511172,1768690418814,169.69,8.383e-05,2]
[402511173,1768690419216,203.63,8.718e-05,2]
[402511174,1768690433224,-237.57,9.053e-05,2]
[402511175,1768690433256,-271.51,9.388e-05,2]
[402511176,1768690433285,-305.45,9.724e-05,2]
[402511177,1768690433314,-339.39,0.00010059,2]
[402511178,1768690433343,-2692.17,0.00012205,2]
[402511179,1768690433726,-2307.83,0.00012205,2]
[402511180,1768690433766,-515.6,0.00012329,2]
[402511181,1768690433795,-429.67,0.00012329,2]
[402511182,1768690433824,-358.06,0.00012329,2]
[402511183,1768690433853,-298.38,0.00012329,2]
[402511184,1768690434155,-6796.59,0.00012761,2]
[402511185,1768690434173,-10000.01,0.00012761,2]
[402511186,1768690439173,-248.65,0.00012329,2]
[402511187,1768690439208,-9502.71,0.00012761,2]
[402511188,1768690439287,-10000.01,0.00012761,2]
[402511189,1768690439621,-10000.01,0.00012761,2]
[402511190,1768690445639,207.21,0.00012329,2]
[402511191,1768690455907,172.68,0.00012329,2]
[402511192,1768690457662,-5000.0,0.00012632,2]
[402511194,1768690466298,0.01,0.00012329,2]
[402511195,1768690466322,863.39,0.00012329,2]
[402511196,1768690469896,5000.0,0.00012632,2]
[402511197,1768690503411,-5000.0,0.00012632,2]
[402511198,1768690527736,-5000.0,0.00012631,2]
[402511199,1768690537238,0.01,0.00012631,2]
[402511200,1768690537264,4999.99,0.00012631,2]
[402511201,1768690553252,170.83,9.571e-05,2]
[402511202,1768690553705,227.77,9.987e-05,2]
[402511203,1768690554647,284.71,0.00010404,2]
[402511204,1768690555071,341.65,0.0001082,2]
[402511205,1768690555499,398.59,0.00011236,2]
[402511206,1768690556455,455.54,0.00011652,2]
[402511207,1768690556884,512.48,0.00012068,2]
[402511208,1768690557295,569.42,0.00012484,2]
[402511210,1768690573337,-5000.0,0.00012631,2]
[402511211,1768690583081,0.01,0.00012631,2]
[402511212,1768690583106,4999.99,0.00012631,2]
[402511213,1768690594004,1444.0,0.00026137,120]
[402511214,1768690605484,5000.0,0.00012498,2]
[402511215,1768690628257,154.05,0.00011633,2]
[402511216,1768690628395,4845.96,0.00012498,2]
[402511217,1768690628420,154.04,0.00012498,2]
[402511218,1768690628706,173.31,0.00012048,2]
[402511219,1768690649535,-500.0,0.00012585,2]
[402511220,1768690649571,-231.65885849,0.00012585,2]
[402511221,1768690649608,-500.0,0.00012585,2]
[402511222,1768690649640,-254.713891,0.00012585,2]
[402511223,1768690649675,-500.0,0.00012585,2]
[402511224,1768690649707,-200.0,0.00012585,2]
[402511225,1768690649740,-500.0,0.00012585,2]
[402511226,1768690651210,4627.26450102,0.00012459,2]
[402511227,1768690651235,372.73549898,0.00012459,2]
[402511228,1768690675029,-830.06677689,0.00012573,2]
[402511229,1768690675061,-989.47320376,0.000127,2]
[402511230,1768690780134,282.4855359,0.00012486,2]
[402511231,1768690780667,221.51692933,0.00012486,2]
[402511232,1768690940443,791.57856304,0.000127,2]
[402511233,1768690969368,-300.0,0.00012721,2]
[402511234,1768690969399,-179.60652139,0.00012721,2]
[402511235,1768690978474,-3213.60592895,0.00012722,2]
[402511236,1768690981480,-389.84348752,0.00012722,2]
[402511237,1768690981510,-9220.32302496,0.00012722,2]
[402511239,1768691233637,248.40581551,0.00012486,2]
[402511240,1768691233709,500.0,0.00012486,2]
[402511241,1768691233861,514.62387196,0.00012623,2]
[402511242,1768691233910,500.0,0.00012486,2]
[402511243,1768691234059,500.0,0.00012623,2]
[402511244,1768691234337,500.0,0.00012486,2]
[402511245,1768691234493,500.0,0.00012623,2]
[402511246,1768691234856,500.0,0.00012486,2]
[402511247,1768691234941,500.0,0.00012486,2]
[402511248,1768691235035,507.49285757,0.00012623,2]
[402511249,1768691235095,500.0,0.00012486,2]
[402511250,1768691235133,500.0,0.00012623,2]
[402511251,1768691235226,500.0,0.00012623,2]
[402511252,1768691235344,500.0,0.00012486,2]
[402511253,1768691235486,500.0,0.00012623,2]
[402511254,1768691242230,2729.48745496,0.000127,2]
[402511255,1768691242256,2270.51254504,0.000127,2]
[402511256,1768691279887,333.19,2.997e-05,2]
[402511257,1768691280157,333.19,2.997e-05,2]
[402511258,1768691283381,633.2628504,0.000127,2]
[402511259,1768691283851,500.0,0.00012486,2]
[402511260,1768691284031,550.0,0.00012623,2]
[402511261,1768691284066,500.0,0.00012486,2]
[402511262,1768691284272,500.0,0.00012623,2]
[402511263,1768691284594,500.0,0.00012486,2]
[402511264,1768691284755,500.0,0.00012623,2]
[402511265,1768691285645,500.0,0.00012486,2]
[402511266,1768691285803,430.81716895,0.00012623,2]
[402511267,1768691380162,1444.0,0.00026137,120]
[402511268,1768691399409,-69.18283105,0.00012623,2]
[402511269,1768691401200,300.0,0.00012659,2]
[402511270,1768691401916,300.0,0.00012659,2]
[402511271,1768691402087,300.0,0.00012659,2]
[402511272,1768691402490,300.0,0.00012659,2]
[402511273,1768691408586,1200.0,0.00012659,2]
[402511274,1768691417356,5000.0,0.0001266,2]
[402511318,1768691432019,-17226.9668833,0.0001266,2]
[402511323,1768691432063,-500.0,0.0001266,2]
[402511343,1768691433773,2461.6443379,0.0001266,2]
[402511344,1768691433798,2538.3556621,0.0001266,2]
[402511345,1768691437111,567.56557986,0.00012659,2]
[402511346,1768691437143,500.0,0.00012659,2]
[402511347,1768691437177,500.0,0.00012659,2]
[402511348,1768691437208,499.99999999,0.00012659,2]
[402511349,1768691437235,500.0,0.00012659,2]
[402511350,1768691437263,500.0,0.00012659,2]
[402511351,1768691437290,314.25385935,0.00012659,2]
[402511352,1768691437330,500.0,0.00012659,2]
[402511353,1768691437359,500.0,0.00012659,2]
[402511354,1768691437396,500.0,0.00012659,2]
[402511355,1768691437428,500.0,0.00012659,2]
[402511356,1768691437457,500.0,0.00012659,2]
[402511357,1768691437491,500.0,0.00012659,2]
[402511358,1768691437524,500.0,0.00012659,2]
[402511359,1768691437562,201.62249932,0.00012659,2]
[402511360,1768691437593,378.21239938,0.00012659,2]
[402511361,1768691437616,121.78760062,0.00012659,2]
[402511362,1768691437651,500.0,0.00012659,2]
[402511363,1768691437959,500.0,0.00012659,2]
[402511364,1768691437989,500.0,0.00012659,2]
[402511365,1768691438026,500.0,0.00012659,2]
[402511366,1768691438054,500.0,0.00012659,2]
[402511367,1768691438083,500.0,0.00012659,2]
[402511368,1768691438120,500.0,0.00012659,2]
[402511369,1768691438149,500.0,0.00012659,2]
[402511370,1768691438187,500.0,0.00012659,2]
[402511371,1768691438217,500.0,0.00012659,2]
[402511372,1768691438276,500.0,0.00012659,2]
[402511373,1768691438306,500.0,0.00012659,2]
[402511374,1768691438335,500.0,0.00012659,2]
[402511375,1768691438367,500.0,0.00012659,2]
[402511376,1768691438396,500.0,0.00012659,2]
[402511377,1768691438431,500.0,0.00012659,2]
[402511378,1768691438464,581.72192787,0.00012659,2]
[402511379,1768691438504,500.0,0.00012659,2]
[402511380,1768691438554,500.0,0.00012659,2]
[402511381,1768691438586,296.50047151,0.00012659,2]
[402511384,1768691438736,-203.49952849,0.00012659,2]
[402511386,1768691438745,-500.0,0.00012659,2]
[402511387,1768691438755,-500.0,0.00012659,2]
[402511389,1768691438764,-500.0,0.00012659,2]
[402511390,1768691438774,-500.0,0.00012659,2]
[402511391,1768691438784,-500.0,0.00012659,2]
[402511393,1768691438793,-500.0,0.00012659,2]
[402511394,1768691438803,-500.0,0.00012659,2]
[402511396,1768691438812,-500.0,0.00012659,2]
[402511398,1768691438822,-500.0,0.00012659,2]
[402511400,1768691438833,-500.0,0.00012659,2]
[402511401,1768691438843,-500.0,0.00012659,2]
[402511402,1768691438852,-4198.65331566,0.0001266,2]
[402511403,1768691438864,-50449.34794586,0.0001266,2]
[402511405,1768691438893,-500.0,0.00012659,2]
[402511407,1768691438903,-927625.03185518,0.0001266,2]
[402511409,1768691438913,-176.01439096,0.00012721,2]
[402511410,1768691438923,-500.0,0.00012722,2]
[402511411,1768691438933,-500.0,0.00012722,2]
[402511412,1768691438944,-500.0,0.00012722,2]
[402511413,1768691438954,-500.0,0.00012722,2]
[402511414,1768691438963,-151.0,0.00012754,2]
[402511415,1768691438974,-250.0,0.0001276,2]
[402511416,1768691438984,-200.0,0.0001276,2]
[402511417,1768691438994,-227.04753207,0.0001276,2]
[402511418,1768691439005,-223.15959327,0.0001276,2]
[402511419,1768691439015,-342.10159605,0.0001276,2]
[402511420,1768691439025,-500.0,0.0001276,2]
[402511421,1768691439035,-500.0,0.0001276,2]
[402511422,1768691439047,-447.44765415,0.0001276,2]
[402511423,1768691439057,-500.0,0.0001276,2]
[402511424,1768691439066,-300.0,0.0001276,2]
[402511425,1768691439076,-480.0,0.0001276,2]
[402511426,1768691439087,-167.975,0.0001276,2]
[402511427,1768691439097,-500.0,0.0001276,2]
[402511428,1768691439108,-151.0,0.000128,2]
[402511429,1768691439119,-3095.3925567,0.00012891,2]
[402511430,1768691439128,-500.0,0.00012897,2]
[402511431,1768691439138,-500.0,0.00012897,2]
[402511432,1768691439148,-181.50628216,0.00012897,2]
[402511433,1768691439157,-500.0,0.00012897,2]
[402511434,1768691439166,-500.0,0.00013034,2]
[402511435,1768691439175,-622.17092249,0.00013034,2]
[402511436,1768691439185,-253.79753123,0.00013034,2]
[402511437,1768691439196,-500.0,0.00013034,2]
[402511438,1768691439206,-500.0,0.00013034,2]
[402511439,1768691439215,-151.0,0.000131,2]
[402511440,1768691439225,-500.0,0.00013171,2]
[402511441,1768691439235,-500.0,0.00013171,2]
[402511442,1768691439245,-283.71991336,0.00013273,2]
[402511443,1768691439254,-500.0,0.00013273,2]
[402511444,1768691439264,-500.0,0.00013273,2]
[402511445,1768691439276,-500.0,0.00013273,2]
[402511446,1768691439285,-500.0,0.00013273,2]
[402511447,1768691439294,-500.89599036,0.00013273,2]
[402511448,1768691439304,-500.0,0.00013273,2]
[402511449,1768691439314,-500.0,0.00013273,2]
[402511450,1768691439324,-500.0,0.00013273,2]
[402511451,1768691439334,-548.42774026,0.00013273,2]
[402511452,1768691439343,-338.85113169,0.00013273,2]
[402511453,1768691439353,-500.0,0.00013273,2]
[402511454,1768691439362,-500.0,0.00013273,2]
[402511455,1768691439372,-500.57249055,0.00013273,2]
[402511456,1768691439382,-264.52944169,0.00013273,2]
[402511457,1768691439391,-500.0,0.00013273,2]
[402511458,1768691439410,-500.0,0.00013273,2]
[402511459,1768691439422,-161.98565488,0.00013273,2]
[402511460,1768691439432,-500.0,0.00013273,2]
[402511461,1768691439442,-500.0,0.00013273,2]
[402511462,1768691439452,-500.0,0.00013273,2]
[402511463,1768691439463,-500.0,0.00013273,2]
[402511464,1768691439474,-165.7395286,0.00013273,2]
[402511465,1768691439484,-500.0,0.00013273,2]
[402511466,1768691439494,-218.21006208,0.00013273,2]
[402511467,1768691439504,-500.0,0.00013273,2]
[402511468,1768691439514,-500.21062387,0.00013273,2]
[402511469,1768691439524,-500.0,0.00013273,2]
[402511470,1768691439534,-500.0,0.00013273,2]
[402511471,1768691439544,-500.0,0.00013273,2]
[402511472,1768691439555,-498.90701801,0.00013273,2]
[402511473,1768691439565,-217.32775629,0.00013273,2]
[402511474,1768691439575,-500.32059538,0.00013273,2]
[402511475,1768691439585,-500.0,0.00013273,2]
[402511476,1768691439595,-500.0,0.00013273,2]
[402511477,1768691439604,-500.0,0.00013273,2]
[402511478,1768691439614,-500.0,0.00013273,2]
[402511479,1768691439624,-156.33034165,0.00013273,2]
[402511480,1768691439636,-171.81254267,0.00013273,2]
[402511481,1768691439649,-304.59,0.00013273,2]
[402511482,1768691439659,-500.0,0.00013307,2]
[402511483,1768691439669,-150.7,0.00013307,2]
[402511484,1768691439682,-150.7,0.00013307,2]
[402511485,1768691439692,-150.7,0.00013307,2]
[402511486,1768691439702,-150.7,0.00013307,2]
[402511487,1768691439713,-150.7,0.00013307,2]
[402511488,1768691439723,-150.7,0.00013307,2]
[402511489,1768691439733,-150.69,0.00013307,2]
[402511490,1768691439744,-159.32,0.00013307,2]
[402511491,1768691439754,-500.0,0.00013308,2]
[402511492,1768691439764,-500.0,0.00013308,2]
[402511493,1768691439775,-500.0,0.00013445,2]
[402511494,1768691439784,-500.0,0.00013445,2]
[402511495,1768691439794,-151.0,0.000135,2]
[402511496,1768691439804,-295.7630174,0.00013582,2]
[402511497,1768691439815,-500.0,0.00013582,2]
[402511499,1768691439824,-633.2628504,0.00013618,2]
[402511501,1768691439834,-300.0,0.00013673,2]
[402511503,1768691439845,-500.0,0.00013698,2]
[402511504,1768691439854,-500.0,0.00013698,2]
[402511505,1768691439864,-499.08422533,0.00013698,2]
[402511506,1768691439874,-500.0,0.00013698,2]
[402511507,1768691439884,-500.0,0.00013698,2]
[402511508,1768691439894,-500.0,0.00013698,2]
[402511509,1768691439904,-500.0,0.00013698,2]
[402511510,1768691439914,-500.0,0.00013698,2]
[402511511,1768691439924,-500.0,0.00013698,2]
[402511512,1768691439934,-500.0,0.00013698,2]
[402511513,1768691439944,-500.0,0.00013698,2]
[402511514,1768691439954,-500.0,0.00013698,2]
[402511515,1768691439964,-500.0,0.00013698,2]
[402511517,1768691439974,-500.0,0.00013698,2]
[402511518,1768691439984,-307.48520335,0.00013698,2]
[402511519,1768691439994,-1125.11,0.00013698,2]
[402511520,1768691440004,-1125.11,0.00013698,2]
[402511521,1768691440014,-1125.11,0.00013698,2]
[402511522,1768691440024,-1125.11,0.00013698,2]
[402511523,1768691440034,-1125.11,0.00013698,2]
[402511524,1768691440044,-1125.11,0.00013698,2]
[402511526,1768691440055,-1125.11,0.00013698,2]
[402511528,1768691440065,-1125.11,0.00013698,2]
[402511530,1768691440075,-1125.11,0.00013698,2]
[402511532,1768691440085,-1125.11,0.00013698,2]
[402511533,1768691440096,-1125.11,0.00013698,2]
[402511534,1768691440105,-1125.11,0.00013698,2]
[402511535,1768691440115,-1125.11,0.00013698,2]
[402511536,1768691440125,-1125.11,0.00013698,2]
[402511537,1768691440134,-1125.11,0.00013698,2]
[402511538,1768691440144,-1125.11,0.00013698,2]
[402511539,1768691440154,-1125.11,0.00013698,2]
[402511540,1768691440164,-1125.11,0.00013698,2]
[402511541,1768691440174,-1125.11,0.00013698,2]
[402511542,1768691440183,-1125.11,0.00013698,2]
[402511543,1768691440193,-1125.11,0.00013698,2]
[402511544,1768691440203,-1125.11,0.00013698,2]
[402511545,1768691440212,-1125.11,0.00013698,2]
[402511546,1768691440222,-1125.26885637,0.00013698,2]
[402511547,1768691440231,-505.79259852,0.00013698,2]
[402511548,1768691440241,-2916.45,0.00013698,2]
[402511549,1768691440251,-2916.45,0.00013698,2]
[402511550,1768691440261,-2916.45,0.00013698,2]
[402511551,1768691440271,-2916.45,0.00013698,2]
[402511552,1768691440281,-2916.45,0.00013698,2]
[402511553,1768691440290,-2916.45,0.00013698,2]
[402511554,1768691440300,-2916.45,0.00013698,2]
[402511555,1768691440309,-2916.45,0.00013698,2]
[402511556,1768691440319,-2916.45,0.00013698,2]
[402511557,1768691440329,-2916.45,0.00013698,2]
[402511558,1768691440339,-2916.45,0.00013698,2]
[402511560,1768691440348,-2916.45,0.00013698,2]
[402511562,1768691440358,-2916.45,0.00013698,2]
[402511564,1768691440368,-2916.45,0.00013698,2]
[402511565,1768691440378,-2916.45,0.00013698,2]
[402511566,1768691440388,-2916.45,0.00013698,2]
[402511567,1768691440398,-2916.45,0.00013698,2]
[402511568,1768691440408,-2916.45,0.00013698,2]
[402511569,1768691440417,-2916.45,0.00013698,2]
[402511570,1768691440427,-2916.45,0.00013698,2]
[402511571,1768691440436,-2916.45,0.00013698,2]
[402511572,1768691440446,-2916.45,0.00013698,2]
[402511573,1768691440455,-2916.45,0.00013698,2]
[402511574,1768691440465,-2916.63,0.00013698,2]
[402511575,1768691440475,-500.0,0.00013698,2]
[402511576,1768691440484,-500.0,0.00013698,2]
[402511577,1768691440493,-500.0,0.00013698,2]
[402511578,1768691440503,-500.0,0.00013698,2]
[402511579,1768691440512,-500.0,0.00013698,2]
[402511580,1768691440522,-500.0,0.00013698,2]
[402511581,1768691440531,-500.0,0.00013698,2]
[402511582,1768691440541,-500.0,0.00013698,2]
[402511583,1768691440550,-500.0,0.00013698,2]
[402511584,1768691440560,-500.0,0.00013698,2]
[402511585,1768691440569,-500.0,0.00013698,2]
[402511586,1768691440579,-500.0,0.00013698,2]
[402511587,1768691440588,-500.0,0.00013698,2]
[402511588,1768691440598,-500.0,0.00013698,2]
[402511589,1768691440607,-500.0,0.00013698,2]